fUST/lending_fUST_20250817
["ID","MTS","AMOUNT","RATE_DAILY","PERIOD"]
[379933468,1755442279267,-492.35,0.00021754,2]
[379933469,1755442279276,-151.0,0.00021755,2]
[379933470,1755442279286,-151.0,0.00021755,2]
[379933471,1755442279296,-894.92,0.00021755,2]
[379933472,1755442279306,-7675.82,0.00021755,2]
[379933473,1755442279315,-990.44,0.00021755,2]
[379933474,1755442279326,-5032.79,0.00021755,2]
[379933475,1755442279336,-151.0,0.00021756,2]
[379933476,1755442279346,-261.347519,0.00021756,2]
[379933477,1755442279356,-397.7164,0.00021756,2]
[379933478,1755442279366,-480.0,0.00021756,2]
[379933479,1755442279376,-788.99,0.00021756,2]
[379933480,1755442279386,-613.42,0.00021756,2]
[379933481,1755442279398,-581.88,0.00021756,2]
[379933482,1755442279409,-1673.56,0.00021756,2]
[379933483,1755442279420,-2358.67,0.00021756,2]
[379933484,1755442279429,-151.0,0.00021757,2]
[379933485,1755442279439,-151.0,0.00021757,2]
[379933486,1755442279448,-167.8,0.00021757,2]
[379933487,1755442279457,-167.8,0.00021757,2]
[379933488,1755442279467,-151.0,0.00021758,2]
[379933489,1755442279477,-151.0,0.00021758,2]
[379933490,1755442279487,-271.098323,0.00021758,2]
[379933491,1755442279496,-160.226413,0.00021758,2]
[379933492,1755442279506,-151.0,0.00021758,2]
[379933493,1755442279516,-151.0,0.00021759,2]
[379933494,1755442279526,-687.648653,0.00021759,2]
[379933495,1755442279535,-687.648653,0.00021759,2]
[379933496,1755442279544,-983.609175,0.00021759,2]
[379933497,1755442279554,-983.609175,0.00021759,2]
[379933498,1755442279563,-493.313819,0.00021768,2]
[379933499,1755442279573,-493.313819,0.00021768,2]
[379933500,1755442279582,-206.0,0.0002177,2]
[379933501,1755442279591,-3000.0,0.00021779,2]
[379933502,1755442279602,-3000.0,0.00021779,2]
[379933503,1755442279611,-151.0,0.00021784,2]
[379933504,1755442279621,-151.0,0.00021784,2]
[379933505,1755442279630,-560.0,0.00021792,2]
[379933506,1755442279640,-12682.46447135,0.000218,3]
[379933507,1755442279649,-160.0,0.000218,3]
[379933508,1755442279660,-417.15472785,0.000218,3]
[379933509,1755442279669,-160.0,0.000218,3]
[379933510,1755442279680,-375.77065697,0.000218,3]
[379933511,1755442279689,-215.71995163,0.000218,3]
[379933512,1755442279699,-151.0,0.00021817,2]
[379933513,1755442279709,-151.0,0.00021817,2]
[379933514,1755442279718,-151.0,0.00021817,2]
[379933515,1755442279727,-151.0,0.0002183,2]
[379933516,1755442279737,-151.0,0.0002183,2]
[379933517,1755442279747,-151.0,0.0002183,2]
[379933518,1755442279756,-781.344543,0.00021857,2]
[379933519,1755442279765,-389.09212,0.00021857,2]
[379933520,1755442279775,-781.344543,0.00021857,2]
[379933521,1755442279785,-389.092124,0.00021857,2]
[379933522,1755442279795,-151.0,0.00021857,2]
[379933523,1755442279804,-151.0,0.00021857,2]
[379933524,1755442279813,-273.452734,0.00021857,2]
[379933525,1755442279823,-273.452734,0.00021857,2]
[379933526,1755442279833,-160.0,0.00021861,5]
[379933527,1755442279843,-163.27558796,0.00021861,5]
[379933528,1755442279852,-160.0,0.00021861,4]
[379933529,1755442279862,-160.0,0.00021861,5]
[379933530,1755442279872,-265.94935015,0.0002188,8]
[379933531,1755442279882,-151.0,0.00021895,2]
[379933532,1755442279891,-466.476595,0.00021895,2]
[379933533,1755442279901,-466.476595,0.00021895,2]
[379933534,1755442279913,-151.0,0.00021895,2]
[379933535,1755442279922,-151.0,0.00021895,2]
[379933536,1755442279932,-2000.0,0.000219,2]
[379933537,1755442279942,-502.775489,0.000219,2]
[379933538,1755442279951,-502.775489,0.000219,2]
[379933539,1755442279961,-8827.72446853,0.00021913,2]
[379933540,1755442279971,-809.41,0.00021917,2]
[379933541,1755442279980,-809.41,0.00021917,2]
[379933542,1755442279990,-809.41,0.00021917,2]
[379933543,1755442279999,-809.41,0.00021917,2]
[379933544,1755442280009,-809.41,0.00021917,2]
[379933545,1755442280019,-809.41,0.00021917,2]
[379933546,1755442280028,-809.41,0.00021917,2]
[379933547,1755442280038,-809.41,0.00021917,2]
[379933548,1755442280047,-809.41,0.00021917,2]
[379933549,1755442280058,-809.41,0.00021917,2]
[379933550,1755442280072,-809.41,0.00021917,2]
[379933551,1755442280081,-809.41,0.00021917,2]
[379933552,1755442280091,-809.41,0.00021917,2]
[379933553,1755442280101,-153.0,0.00021918,2]
[379933554,1755442280110,-153.0,0.00021918,2]
[379933555,1755442280119,-153.0,0.00021918,2]
[379933556,1755442280129,-153.0,0.00021918,2]
[379933557,1755442280139,-153.0,0.00021918,2]
[379933558,1755442280149,-153.0,0.00021918,2]
[379933559,1755442280160,-151.0,0.00021918,2]
[379933560,1755442280169,-151.0,0.00021918,2]
[379933561,1755442280179,-151.0,0.00021918,2]
[379933562,1755442280189,-151.0,0.00021918,2]
[379933563,1755442280198,-151.0,0.00021918,2]
[379933564,1755442280208,-151.0,0.00021918,2]
[379933565,1755442280218,-151.0,0.00021918,2]
[379933566,1755442280228,-151.0,0.00021918,2]
[379933567,1755442280238,-151.0,0.00021918,2]
[379933568,1755442280247,-301.449453,0.00021918,2]
[379933569,1755442280257,-151.0,0.00021918,2]
[379933570,1755442280266,-151.0,0.00021918,2]
[379933571,1755442280276,-151.0,0.00021918,2]
[379933572,1755442280285,-301.449453,0.00021918,2]
[379933573,1755442280295,-490.392144,0.00021918,2]
[379933574,1755442280304,-490.392144,0.00021918,2]
[379933575,1755442280314,-490.392144,0.00021918,2]
[379933576,1755442280323,-490.392144,0.00021918,2]
[379933577,1755442280333,-490.392144,0.00021918,2]
[379933578,1755442280342,-490.392144,0.00021918,2]
[379933579,1755442280351,-490.392144,0.00021918,2]
[379933580,1755442280361,-490.392144,0.00021918,2]
[379933581,1755442280370,-490.392144,0.00021918,2]
[379933582,1755442280380,-490.392144,0.00021918,2]
[379933583,1755442280389,-490.392144,0.00021918,2]
[379933584,1755442280399,-490.392144,0.00021918,2]
[379933585,1755442280409,-490.392144,0.00021918,2]
[379933586,1755442280419,-490.392144,0.00021918,2]
[379933587,1755442280429,-490.392144,0.00021918,2]
[379933588,1755442280438,-490.392144,0.00021918,2]
[379933589,1755442280448,-490.392144,0.00021918,2]
[379933590,1755442280457,-490.392144,0.00021918,2]
[379933591,1755442280466,-490.392144,0.00021918,2]
[379933592,1755442280476,-490.392153,0.00021918,2]
[379933593,1755442280485,-151.0,0.00021918,2]
[379933594,1755442280495,-151.0,0.00021918,2]
[379933595,1755442280504,-151.0,0.00021918,2]
[379933596,1755442280514,-301.449453,0.00021918,2]
[379933597,1755442280524,-151.0,0.00021918,2]
[379933598,1755442280534,-151.0,0.00021918,2]
[379933599,1755442280543,-151.0,0.00021918,2]
[379933600,1755442280553,-151.0,0.00021918,2]
[379933601,1755442280563,-151.0,0.00021918,2]
[379933602,1755442280572,-151.0,0.00021918,2]
[379933603,1755442280582,-151.0,0.00021918,2]
[379933604,1755442280592,-151.0,0.00021918,2]
[379933605,1755442280602,-151.0,0.00021918,2]
[379933606,1755442280613,-151.0,0.00021918,2]
[379933607,1755442280623,-151.0,0.00021918,2]
[379933608,1755442280632,-151.0,0.00021918,2]
[379933609,1755442280642,-151.0,0.00021918,2]
[379933610,1755442280652,-151.0,0.00021918,2]
[379933611,1755442280664,-152.0,0.00021918,2]
[379933612,1755442280674,-152.0,0.00021918,2]
[379933613,1755442280684,-152.0,0.00021918,2]
[379933614,1755442280829,-152.0,0.00021918,2]
[379933615,1755442280838,-152.0,0.00021918,2]
[379933616,1755442280848,-152.0,0.00021918,2]
[379933617,1755442280858,-152.0,0.00021918,2]
[379933618,1755442280867,-155.37092289,0.00021918,2]
[379933619,1755442280877,-152.0,0.00021918,2]
[379933620,1755442280886,-152.0,0.00021918,2]
[379933621,1755442280896,-152.0,0.00021918,2]
[379933622,1755442280905,-152.0,0.00021918,2]
[379933623,1755442280916,-152.0,0.00021918,2]
[379933624,1755442280926,-152.0,0.00021918,2]
[379933625,1755442280936,-152.0,0.00021918,2]
[379933626,1755442280946,-152.0,0.00021918,2]
[379933627,1755442280955,-152.0,0.00021918,2]
[379933628,1755442280965,-152.0,0.00021918,2]
[379933629,1755442280975,-152.0,0.00021918,2]
[379933630,1755442280985,-152.0,0.00021918,2]
[379933631,1755442280995,-152.0,0.00021918,2]
[379933632,1755442281004,-152.0,0.00021918,2]
[379933633,1755442281014,-152.0,0.00021918,2]
[379933634,1755442281023,-152.0,0.00021918,2]
[379933635,1755442281033,-152.0,0.00021918,2]
[379933636,1755442281043,-152.0,0.00021918,2]
[379933637,1755442281052,-152.0,0.00021918,2]
[379933638,1755442281061,-152.0,0.00021918,2]
[379933639,1755442281071,-152.0,0.00021918,2]
[379933640,1755442281081,-152.0,0.00021918,2]
[379933641,1755442281091,-152.0,0.00021918,2]
[379933642,1755442281100,-152.0,0.00021918,2]
[379933643,1755442281110,-152.0,0.00021918,2]
[379933644,1755442281120,-152.0,0.00021918,2]
[379933645,1755442281129,-152.0,0.00021918,2]
[379933646,1755442281139,-152.0,0.00021918,2]
[379933647,1755442281149,-152.0,0.00021918,2]
[379933648,1755442281158,-152.0,0.00021918,2]
[379933649,1755442281168,-152.0,0.00021918,2]
[379933650,1755442281178,-152.0,0.00021918,2]
[379933651,1755442281188,-152.0,0.00021918,2]
[379933653,1755442281197,-152.0,0.00021918,2]
[379933654,1755442281207,-152.0,0.00021918,2]
[379933655,1755442281216,-152.0,0.00021918,2]
[379933656,1755442281226,-152.0,0.00021918,2]
[379933657,1755442281235,-152.0,0.00021918,2]
[379933658,1755442281244,-152.0,0.00021918,2]
[379933659,1755442281253,-152.0,0.00021918,2]
[379933660,1755442281263,-152.0,0.00021918,2]
[379933661,1755442281273,-152.0,0.00021918,2]
[379933662,1755442281283,-152.0,0.00021918,2]
[379933663,1755442281292,-152.0,0.00021918,2]
[379933664,1755442281302,-152.0,0.00021918,2]
[379933665,1755442281311,-152.0,0.00021918,2]
[379933666,1755442281321,-152.0,0.00021918,2]
[379933667,1755442281330,-152.0,0.00021918,2]
[379933668,1755442281339,-152.0,0.00021918,2]
[379933669,1755442281350,-152.0,0.00021918,2]
[379933670,1755442281359,-152.0,0.00021918,2]
[379933671,1755442281369,-152.0,0.00021918,2]
[379933672,1755442281378,-152.0,0.00021918,2]
[379933673,1755442281388,-152.0,0.00021918,2]
[379933674,1755442281397,-212.87799942,0.00021918,2]
[379933675,1755442281408,-150.0,0.00021918,2]
[379933676,1755442281418,-175.56876457,0.00021918,2]
[379933677,1755442281427,-173.0,0.00021918,2]
[379933678,1755442281437,-173.0,0.00021918,2]
[379933679,1755442281446,-173.0,0.00021918,2]
[379933680,1755442281456,-173.0,0.00021918,2]
[379933681,1755442281465,-872.0,0.00021918,2]
[379933682,1755442281476,-209.14763512,0.00021918,2]
[379933683,1755442281486,-151.0,0.00021918,7]
[379933684,1755442281495,-151.0,0.00021918,7]
[379933685,1755442281505,-278.017436,0.00021918,7]
[379933687,1755442281515,-527.36,0.00021931,2]
[379933689,1755442281525,-912.72,0.00021931,2]
[379933690,1755442281534,-480.0,0.00021931,2]
[379933691,1755442281543,-563.11,0.00021931,2]
[379933692,1755442281552,-480.0,0.00021931,2]
[379933693,1755442281562,-591.29,0.00021931,2]
[379933694,1755442281571,-480.0,0.00021931,2]
[379933695,1755442281579,-1163.69,0.00021931,2]
[379933696,1755442281588,-480.0,0.00021931,2]
[379933697,1755442281598,-928.64,0.00021931,2]
[379933698,1755442281608,-908.19,0.00021931,2]
[379933699,1755442281623,-480.0,0.00021931,2]
[379933700,1755442281632,-480.0,0.00021931,2]
[379933701,1755442281641,-709.65,0.00021931,2]
[379933702,1755442281651,-1949.06,0.00021931,2]
[379933703,1755442281661,-188.71265852,0.00021931,2]
[379933704,1755442281671,-2225.78,0.00021931,2]
[379933705,1755442281681,-1000.32,0.00021931,2]
[379933706,1755442281692,-480.0,0.00021931,2]
[379933707,1755442281708,-1436.82,0.00021931,2]
[379933708,1755442281749,-6061.46,0.00021931,2]
[379933709,1755442281780,-1175.2,0.00021931,2]
[379933710,1755442281797,-763.93,0.00021931,2]
[379933711,1755442281807,-526.35,0.00021931,2]
[379933712,1755442281820,-480.0,0.00021931,2]
[379933713,1755442281831,-695.09,0.00021931,2]
[379933714,1755442281841,-715.83,0.00021931,2]
[379933715,1755442281850,-494.32,0.00021931,2]
[379933716,1755442281860,-480.0,0.00021931,2]
[379933717,1755442281870,-504.66,0.00021931,2]
[379933718,1755442281880,-160.0,0.0002195,7]
[379933719,1755442281890,-587.0,0.0002195,2]
[379933720,1755442281899,-215.5453161,0.00021973,2]
[379933721,1755442281909,-150.0,0.00021973,2]
[379933722,1755442281919,-500.0,0.00021973,2]
[379933723,1755442281929,-500.0,0.00021973,2]
[379933724,1755442281938,-159.60508025,0.00021973,2]
[379933725,1755442281947,-500.0,0.00021973,2]
[379933726,1755442281957,-258.63436774,0.00021973,2]
[379933727,1755442281967,-258.67006152,0.00021973,2]
[379933728,1755442281977,-340.84167788,0.00021973,2]
[379933729,1755442281987,-160.6223693,0.00021973,2]
[379933730,1755442281997,-500.0,0.00021973,2]
[379933731,1755442282007,-500.0,0.00021973,2]
[379933732,1755442282016,-151.0,0.00021973,7]
[379933733,1755442282026,-300.010742,0.0002198,7]
[379933734,1755442282036,-238.389911,0.0002198,7]
[379933735,1755442282046,-4504.07753248,0.0002198,2]
[379933736,1755442282055,-253.23254,0.0002198,7]
[379933737,1755442282065,-151.0,0.0002198,7]
[379933738,1755442282074,-150.0,0.00021985,30]
[379933739,1755442282084,-168.504209,0.00021999,3]
[379933740,1755442282093,-9093.92,0.00022,7]
[379933741,1755442282103,-354.50325358,0.00022,2]
[379933742,1755442282114,-1717.05186705,0.00022,2]
[379933743,1755442282123,-12682.46447135,0.00022,30]
[379933744,1755442282133,-12682.46447135,0.00022,7]
[379933745,1755442282142,-55397.1,0.00022,2]
[379933746,1755442282152,-999.999999,0.00022,5]
[379933747,1755442282161,-163.49,0.00022,14]
[379933748,1755442282170,-151.0,0.00022,7]
[379933749,1755442282180,-151.0,0.00022,7]
[379933750,1755442282190,-214.171834,0.00022,7]
[379933751,1755442282199,-410.539385,0.00022,7]
[379933752,1755442282209,-301.449453,0.00022,7]
[379933753,1755442282219,-151.0,0.00022,7]
[379933754,1755442282229,-151.0,0.00022,7]
[379933755,1755442282238,-493.313819,0.00022,7]
[379933756,1755442282248,-493.313819,0.00022,7]
[379933757,1755442282258,-151.0,0.00022,7]
[379933758,1755442282268,-151.0,0.00022,7]
[379933759,1755442282278,-151.0,0.00022,7]
[379933760,1755442282287,-273.692923,0.00022,7]
[379933761,1755442282297,-273.692923,0.00022,7]
[379933762,1755442282306,-31280.86,0.00022,7]
[379933763,1755442282316,-153.161802,0.00022,7]
[379933764,1755442282326,-151.0,0.00022,7]
[379933765,1755442282335,-228.443223,0.00022,7]
[379933766,1755442282346,-151.0,0.00022,7]
[379933767,1755442282355,-228.443223,0.00022,7]
[379933768,1755442282365,-151.0,0.00022,7]
[379933769,1755442282375,-160.226413,0.00022,7]
[379933770,1755442282385,-951.6485,0.00022,7]
[379933771,1755442282394,-951.6485,0.00022,7]
[379933772,1755442282403,-151.0,0.00022,7]
[379933773,1755442282413,-151.0,0.00022,7]
[379933774,1755442282423,-151.0,0.00022,7]
[379933775,1755442282432,-502.775489,0.00022,7]
[379933776,1755442282441,-151.0,0.00022,7]
[379933777,1755442282451,-502.775489,0.00022,7]
[379933778,1755442282460,-151.0,0.00022,7]
[379933779,1755442282470,-151.0,0.00022,7]
[379933780,1755442282479,-151.0,0.00022,7]
[379933781,1755442282489,-167.8,0.00022,7]
[379933782,1755442282498,-167.8,0.00022,7]
[379933783,1755442282508,-397.7164,0.00022,7]
[379933784,1755442282517,-151.0,0.00022,7]
[379933785,1755442282527,-151.0,0.00022,7]
[379933786,1755442282537,-781.344543,0.00022,7]
[379933787,1755442282546,-781.344543,0.00022,7]
[379933788,1755442282556,-151.0,0.00022,7]
[379933789,1755442282566,-687.648653,0.00022,7]
[379933790,1755442282575,-687.648653,0.00022,7]
[379933791,1755442282586,-863.9729156,0.00022,2]
[379933792,1755442282596,-152.589074,0.00022,7]
[379933793,1755442282605,-151.0,0.00022,7]
[379933794,1755442282618,-466.476595,0.00022,7]
[379933795,1755442282628,-466.476595,0.00022,7]
[379933796,1755442282637,-151.0,0.00022,7]
[379933797,1755442282647,-983.609175,0.00022,7]
[379933798,1755442282658,-983.609175,0.00022,7]
[379933799,1755442282668,-273.452734,0.00022,7]
[379933800,1755442282677,-273.452734,0.00022,7]
[379933801,1755442282687,-1000.0,0.00022,2]
[379933802,1755442282699,-1000.0,0.00022,2]
[379933803,1755442282709,-1000.0,0.00022,2]
[379933804,1755442282718,-1000.0,0.00022,2]
[379933805,1755442282727,-1000.0,0.00022,2]
[379933806,1755442282737,-1000.0,0.00022,2]
[379933807,1755442282746,-151.0,0.00022,7]
[379933808,1755442282756,-151.0,0.00022,7]
[379933809,1755442282766,-160.0,0.00022,7]
[379933810,1755442282775,-417.15472785,0.00022,7]
[379933811,1755442282785,-417.15472785,0.00022,30]
[379933812,1755442282794,-160.0,0.00022,7]
[379933813,1755442282803,-375.77065697,0.00022,7]
[379933814,1755442282813,-375.77065697,0.00022,30]
[379933815,1755442282822,-215.71995163,0.00022,7]
[379933816,1755442282832,-215.71995163,0.00022,30]
[379933817,1755442282841,-480.0,0.00022026,2]
[379933818,1755442282851,-1819.3,0.00022026,2]
[379933819,1755442282860,-3256.49,0.00022027,2]
[379933820,1755442282871,-480.0,0.00022028,2]
[379933821,1755442282880,-698.95,0.00022028,2]
[379933822,1755442282890,-480.0,0.00022028,2]
[379933823,1755442282900,-687.45,0.00022028,2]
[379933824,1755442282909,-480.0,0.00022028,2]
[379933825,1755442282919,-549.85,0.00022028,2]
[379933826,1755442282928,-611.72041816,0.00022028,2]
[379933827,1755442282938,-971.72,0.00022028,2]
[379933828,1755442282947,-480.0,0.00022028,2]
[379933829,1755442282957,-573.88,0.00022028,2]
[379933830,1755442282967,-480.0,0.00022028,2]
[379933831,1755442282976,-809.41,0.00022028,2]
[379933832,1755442282986,-719.18,0.00022028,2]
[379933833,1755442282996,-480.0,0.00022028,2]
[379933834,1755442283005,-584.35,0.00022028,2]
[379933835,1755442283015,-492.35,0.00022028,2]
[379933836,1755442283025,-894.92,0.00022029,2]
[379933837,1755442283034,-7675.82,0.00022029,2]
[379933838,1755442283043,-990.44,0.00022029,2]
[379933839,1755442283053,-5032.79,0.00022029,2]
[379933840,1755442283062,-480.0,0.0002203,2]
[379933841,1755442283072,-788.99,0.0002203,2]
[379933842,1755442283082,-613.42,0.0002203,2]
[379933843,1755442283091,-581.88,0.0002203,2]
[379933844,1755442283101,-1673.56,0.0002203,2]
[379933845,1755442283110,-2358.67,0.0002203,2]
[379933846,1755442283120,-951.6485,0.00022031,7]
[379933847,1755442283130,-951.6485,0.00022031,7]
[379933848,1755442283139,-151.0,0.00022031,7]
[379933849,1755442283149,-151.0,0.00022031,7]
[379933850,1755442283160,-255.198202,0.00022031,7]
[379933851,1755442283169,-167.8,0.00022031,7]
[379933852,1755442283178,-167.8,0.00022031,7]
[379933853,1755442283187,-397.7164,0.00022031,7]
[379933854,1755442283196,-168.504209,0.00022031,2]
[379933855,1755442283206,-228.443223,0.00022032,7]
[379933856,1755442283215,-228.443223,0.00022032,7]
[379933857,1755442283224,-151.0,0.00022033,7]
[379933858,1755442283234,-983.609175,0.00022033,7]
[379933859,1755442283244,-983.609175,0.00022033,7]
[379933860,1755442283253,-3500.0,0.0002206,2]
[379933861,1755442283262,-3500.0,0.0002206,2]
[379933862,1755442283273,-401.8,0.00022083,2]
[379933863,1755442283282,-674.07,0.000221,2]
[379933864,1755442283292,-1247.63884865,0.00022116,2]
[379933865,1755442283301,-2000.0,0.00022116,2]
[379933866,1755442283311,-1668.0139822,0.00022116,2]
[379933867,1755442283320,-567.80879601,0.00022116,2]
[379933868,1755442283330,-2000.0,0.00022116,2]
[379933869,1755442283340,-296.76058061,0.00022116,2]
[379933870,1755442283349,-520.17142501,0.00022116,2]
[379933871,1755442283359,-1009.90902439,0.00022116,2]
[379933872,1755442283368,-376.48468622,0.00022116,2]
[379933873,1755442283377,-1384.47707551,0.00022116,2]
[379933874,1755442283387,-2000.0,0.00022116,2]
[379933875,1755442283397,-2000.0,0.00022116,2]
[379933876,1755442283407,-385.41183495,0.00022116,2]
[379933877,1755442283418,-2000.0,0.00022116,2]
[379933878,1755442283428,-1437.0,0.00022164,2]
[379933879,1755442283438,-2500.0,0.00022164,2]
[379933880,1755442283448,-2500.0,0.00022164,2]
[379933881,1755442283458,-224.53224946,0.00022164,2]
[379933882,1755442283467,-1004.09150484,0.00022164,2]
[379933883,1755442283477,-2500.0,0.00022164,2]
[379933884,1755442283487,-2500.0,0.00022164,2]
[379933885,1755442283496,-2500.0,0.00022164,2]
[379933886,1755442283506,-151.0,0.00022191,7]
[379933887,1755442283516,-300.010742,0.00022191,7]
[379933888,1755442283526,-300.010742,0.00022191,7]
[379933889,1755442283536,-151.0,0.00022191,7]
[379933890,1755442283546,-410.539385,0.00022191,7]
[379933891,1755442283555,-410.539385,0.00022191,7]
[379933892,1755442283565,-151.0,0.00022191,7]
[379933893,1755442283574,-872.0,0.00022192,2]
[379933894,1755442283584,-161.93,0.000222,7]
[379933895,1755442283594,-151.0,0.000222,7]
[379933896,1755442283603,-151.0,0.000222,7]
[379933897,1755442283616,-151.0,0.000222,7]
[379933898,1755442283626,-273.692923,0.00022205,7]
[379933899,1755442283636,-273.692923,0.00022205,7]
[379933900,1755442283646,-527.36,0.00022205,2]
[379933901,1755442283656,-912.72,0.00022205,2]
[379933902,1755442283666,-480.0,0.00022205,2]
[379933903,1755442283675,-563.11,0.00022205,2]
[379933904,1755442283685,-480.0,0.00022205,2]
[379933905,1755442283699,-591.29,0.00022205,2]
[379933906,1755442283709,-480.0,0.00022205,2]
[379933907,1755442283719,-1163.69,0.00022205,2]
[379933908,1755442283729,-480.0,0.00022205,2]
[379933909,1755442283739,-928.64,0.00022205,2]
[379933910,1755442283749,-908.19,0.00022205,2]
[379933911,1755442283759,-480.0,0.00022205,2]
[379933912,1755442283768,-480.0,0.00022205,2]
[379933913,1755442283778,-709.65,0.00022205,2]
[379933914,1755442283788,-1949.06,0.00022205,2]
[379933915,1755442283798,-2225.78,0.00022205,2]
[379933916,1755442283808,-1000.32,0.00022205,2]
[379933917,1755442283817,-480.0,0.00022205,2]
[379933918,1755442283827,-1436.82,0.00022205,2]
[379933919,1755442283837,-6061.46,0.00022205,2]
[379933920,1755442283847,-1175.2,0.00022205,2]
[379933921,1755442283994,-763.93,0.00022205,2]
[379933922,1755442284004,-526.35,0.00022205,2]
[379933923,1755442284014,-480.0,0.00022205,2]
[379933924,1755442284023,-695.09,0.00022205,2]
[379933925,1755442284034,-715.83,0.00022205,2]
[379933926,1755442284043,-494.32,0.00022205,2]
[379933927,1755442284053,-480.0,0.00022205,2]
[379933928,1755442284063,-504.66,0.00022205,2]
[379933929,1755442284073,-3500.0,0.00022239,2]
[379933930,1755442284083,-156.26586408,0.00022285,2]
[379933931,1755442284093,-638.72,0.00022287,2]
[379933932,1755442284103,-150.0,0.00022289,2]
[379933933,1755442284112,-480.0,0.000223,2]
[379933934,1755442284121,-1819.3,0.000223,2]
[379933935,1755442284131,-3256.49,0.00022301,2]
[379933936,1755442284140,-480.0,0.00022302,2]
[379933937,1755442284150,-698.95,0.00022302,2]
[379933938,1755442284161,-480.0,0.00022302,2]
[379933939,1755442284170,-687.45,0.00022302,2]
[379933940,1755442284180,-276.93840372,0.00022302,2]
[379933941,1755442284190,-549.85,0.00022302,2]
[379933942,1755442284200,-971.72,0.00022302,2]
[379933943,1755442284210,-480.0,0.00022302,2]
[379933944,1755442284220,-573.88,0.00022302,2]
[379933945,1755442284230,-480.0,0.00022302,2]
[379933946,1755442284239,-809.41,0.00022302,2]
[379933947,1755442284248,-719.18,0.00022302,2]
[379933948,1755442284258,-480.0,0.00022302,2]
[379933949,1755442284268,-584.35,0.00022302,2]
[379933950,1755442284278,-492.35,0.00022302,2]
[379933951,1755442284288,-894.92,0.00022303,2]
[379933952,1755442284297,-7675.82,0.00022303,2]
[379933953,1755442284307,-990.44,0.00022303,2]
[379933954,1755442284316,-5032.79,0.00022303,2]
[379933955,1755442284326,-151.0,0.00022304,7]
[379933956,1755442284335,-151.0,0.00022304,7]
[379933957,1755442284344,-300.898914,0.00022304,7]
[379933958,1755442284354,-160.226413,0.00022304,7]
[379933959,1755442284363,-160.226413,0.00022304,7]
[379933960,1755442284373,-502.775489,0.00022304,7]
[379933961,1755442284383,-502.775489,0.00022304,7]
[379933962,1755442284392,-151.0,0.00022304,7]
[379933963,1755442284402,-151.0,0.00022304,7]
[379933964,1755442284411,-781.344543,0.00022304,7]
[379933965,1755442284421,-781.344534,0.00022304,7]
[379933966,1755442284430,-151.0,0.00022304,7]
[379933967,1755442284440,-466.476595,0.00022304,7]
[379933968,1755442284449,-466.476595,0.00022304,7]
[379933969,1755442284458,-273.452734,0.00022304,7]
[379933970,1755442284467,-273.452726,0.00022304,7]